bitfinex-derivatives/quotes_SOLF0:USTF0_20241224
["timestamp","ask_amount","ask_price","bid_price","bid_amount"]
[1735057539069,3.76,198.42,198.2,55.92893324]
[1735057539365,3.76,198.42,198.21,3.1694]
[1735057539565,3.76,198.42,198.22,21.47492211]
[1735057539869,2.5228,198.36,198.28,2.5237]
[1735057540068,2.5228,198.36,198.26,21.47492211]
[1735057541267,3.76,198.42,198.26,21.47492211]
[1735057541562,124.0,198.56,198.24,3.76]
[1735057541563,25.23492211,198.48,198.3,21.47492211]
[1735057541762,1.6013,198.45,198.3,21.47492211]
[1735057541963,2.5227,198.37,198.31,2.5233]
[1735057542666,1.6013,198.45,198.3,23.99842211]
[1735057542868,3.76,198.44,198.3,23.99842211]
[1735057543759,3.76,198.44,198.3,21.47492211]
[1735057543965,25.23492211,198.44,198.26,25.23492211]
[1735057544264,2.5229,198.36,198.26,25.23492211]
[1735057544465,25.23492211,198.44,198.29,2.5235]
[1735057545072,25.23492211,198.44,198.28,2.5238]
[1735057545571,3.76,198.44,198.28,2.5238]
[1735057546467,2.523,198.34,198.28,2.5238]
[1735057546674,2.523,198.34,198.27,2.5239]
[1735057547177,3.76,198.38,198.26,25.23492211]
[1735057547373,2.5232,198.33,198.26,25.23492211]
[1735057547568,3.76,198.38,198.21,3.1694]
[1735057547766,1.6379,198.37,198.21,3.1694]
[1735057548072,3.1907,198.37,198.21,3.1694]
[1735057548773,3.1907,198.37,198.22,2.5244]
[1735057549070,3.1907,198.37,198.21,3.1694]
[1735057549071,24.66562211,198.37,198.2,21.47492211]
[1735057549269,24.66562211,198.37,198.16,77.40385535]
[1735057549867,21.47492211,198.33,198.14,3.0011]
[1735057550070,1.5487,198.32,198.14,3.0011]
[1735057550261,25.31492211,198.31,198.14,3.0011]
[1735057550468,2.5247,198.21,198.14,3.0011]
[1735057550770,3.84,198.24,198.14,3.0011]
[1735057550973,3.84,198.23,198.14,3.0011]
[1735057551173,3.84,198.23,198.14,1.5086]
[1735057551776,3.84,198.23,198.13,21.47492211]
[1735057552575,3.84,198.23,198.09,24.46692211]
[1735057553575,2.525,198.19,198.11,2.5258]
[1735057553874,2.525,198.19,198.09,24.46692211]
[1735057554377,3.1907,198.37,198.15,21.47492211]
[1735057554575,3.1907,198.37,198.22,21.47492211]
[1735057554777,2.5235,198.31,198.24,2.5243]
[1735057554973,2.5235,198.31,198.22,21.47492211]
[1735057555376,2.5232,198.33,198.28,2.5238]
[1735057557775,4.06,198.46,198.27,4.06]
[1735057557980,7.3529,198.46,198.27,4.06]
[1735057558180,1.5412,198.45,198.27,4.06]
[1735057558378,2.5225,198.38,198.32,2.5232]
[1735057559883,124.0,198.6,198.3,21.47492211]
[1735057560178,21.47492211,198.46,198.27,4.06]
[1735057560373,4.6887,198.45,198.27,4.06]
[1735057560573,2.5225,198.39,198.31,2.5233]
[1735057560875,21.47492211,198.42,198.27,55.92893324]
[1735057561082,21.47492211,198.42,198.28,2.5238]
[1735057562476,2.523,198.35,198.28,2.5238]
[1735057564984,2.523,198.34,198.28,2.5238]
[1735057565179,4.06,198.39,198.26,2.524]
[1735057565780,2.5233,198.32,198.26,2.524]
[1735057566485,4.06,198.37,198.22,25.53492211]
[1735057567187,2.5229,198.36,198.28,2.5238]
[1735057568688,2.5223,198.4,198.31,2.5233]
[1735057568985,2.5223,198.4,198.3,21.47492211]
[1735057569182,2.5221,198.42,198.3,21.47492211]
[1735057569483,1.6213,198.44,198.3,21.47492211]
[1735057569990,1.6213,198.44,198.31,0.8047]
[1735057570282,4.1431,198.44,198.38,2.5225]
[1735057570878,2.5221,198.42,198.35,2.5228]
[1735057571376,1.6213,198.44,198.31,0.8047]
[1735057571683,2.5218,198.44,198.31,0.8047]
[1735057572074,2.5218,198.44,198.38,2.5224]
[1735057572478,210.90866694,198.73,198.43,21.47492211]
[1735057572679,1.5299,198.71,198.54,21.47492211]
[1735057572882,54.7576294,198.66,198.58,21.47492211]
[1735057573083,54.7576294,198.66,198.62,21.47492211]
[1735057573683,2.5191,198.65,198.58,21.47492211]
[1735057574180,54.7576294,198.66,198.62,21.47492211]
[1735057574386,2.5185,198.7,198.62,21.47492211]
[1735057575582,1.5299,198.71,198.62,21.47492211]
[1735057575789,1.6365,198.78,198.62,21.47492211]
[1735057575981,4.28,198.77,198.62,21.47492211]
[1735057576376,4.28,198.77,198.63,2.5192]
[1735057576585,21.47492211,198.74,198.58,21.47492211]
[1735057576980,21.47492211,198.74,198.54,21.47492211]
[1735057577393,21.47492211,198.7,198.54,21.47492211]
[1735057577590,2.5195,198.62,198.54,21.47492211]
[1735057577791,2.5195,198.62,198.5,21.47492211]
[1735057577792,4.28,198.62,198.5,21.47492211]
[1735057578088,2.52,198.58,198.5,21.47492211]
[1735057578791,4.28,198.62,198.5,21.47492211]
[1735057578989,2.5198,198.6,198.5,21.47492211]
[1735057579593,2.5199,198.59,198.5,23.99582211]
[1735057580189,2.5199,198.59,198.5,2.5209]
[1735057580589,4.28,198.62,198.36,90.77254522]
[1735057580590,34.84361198,198.58,198.36,90.77254522]
[1735057580789,1.5375,198.57,198.37,0.926644]
[1735057581086,1.5375,198.57,198.36,90.77254522]
[1735057581391,2.5211,198.49,198.36,34.84361198]
[1735057581698,4.28,198.48,198.36,34.84361198]
[1735057581892,4.28,198.47,198.37,2.5225]
[1735057582091,4.28,198.46,198.37,2.5225]
[1735057583392,34.84361198,198.54,198.37,2.5225]
[1735057583588,4.28,198.53,198.36,34.84361198]
[1735057583793,4.28,198.53,198.35,2.5228]
[1735057584515,2.5213,198.48,198.35,2.5228]
[1735057584804,4.28,198.53,198.35,2.5228]
[1735057585300,2.522,198.42,198.32,34.84361198]
[1735057585502,4.28,198.41,198.32,34.84361198]
[1735057586403,6.8022,198.41,198.35,2.5229]
[1735057586800,4.28,198.41,198.32,34.84361198]
[1735057588000,34.84361198,198.5,198.32,34.84361198]
[1735057588305,34.84361198,198.54,198.32,34.84361198]
[1735057588506,4.28,198.53,198.32,34.84361198]
[1735057589606,2.5216,198.45,198.32,34.84361198]
[1735057589806,6.8016,198.45,198.32,34.84361198]
[1735057590513,6.8016,198.45,198.38,2.5224]
[1735057590706,2.522,198.43,198.32,34.84361198]
[1735057590922,4.28,198.45,198.32,34.84361198]
[1735057591607,4.28,198.45,198.34,2.523]
[1735057591803,2.5225,198.39,198.32,34.84361198]
[1735057592003,1.5101,198.44,198.32,34.84361198]
[1735057592199,1.5101,198.44,198.28,34.84361198]
[1735057592405,2.5229,198.35,198.28,34.84361198]
[1735057592607,2.5229,198.35,198.3,2.5235]
[1735057592906,4.28,198.37,198.28,34.84361198]
[1735057593207,4.28,198.37,198.35,2.5228]
[1735057593408,4.28,198.4,198.32,34.84361198]
[1735057594003,4.28,198.4,198.35,2.5228]
[1735057594200,4.28,198.4,198.32,34.84361198]
[1735057594704,2.5225,198.38,198.33,2.5231]
[1735057594903,4.28,198.5,198.36,34.84361198]
[1735057595404,2.5215,198.46,198.4,2.5222]
[1735057595607,4.28,198.5,198.4,2.5222]
[1735057595810,34.84361198,198.56,198.4,2.5222]
[1735057595999,4.28,198.55,198.4,2.5222]
[1735057596505,2.5218,198.44,198.36,34.84361198]
[1735057596722,4.28,198.46,198.36,34.84361198]
[1735057596911,34.84361198,198.56,198.36,34.84361198]
[1735057596912,4.28,198.45,198.36,34.84361198]
[1735057597307,2.5217,198.45,198.39,2.5223]
[1735057597901,4.28,198.46,198.42,2.522]
[1735057598306,4.28,198.46,198.36,34.84361198]
[1735057598703,6.8016,198.46,198.4,2.5221]
[1735057599008,4.28,198.46,198.4,2.5221]
[1735057600519,2.5216,198.45,198.4,2.5221]
[1735057600814,21.47275649,198.54,198.35,21.47275649]
[1735057601015,2.5219,198.43,198.38,2.5225]
[1735057602015,4.28,198.45,198.38,2.5225]
[1735057602319,2.522,198.42,198.36,2.5227]
[1735057602511,4.28,198.45,198.36,2.5227]
[1735057602710,3.0253,198.59,198.3,77.40168973]
[1735057602911,3.0253,198.59,198.34,4.08]
[1735057602912,21.47275649,198.55,198.34,4.08]
[1735057603115,2.5213,198.48,198.37,21.47275649]
[1735057603518,4.3,198.54,198.42,2.522]
[1735057603917,4.3,198.54,198.3,21.47275649]
[1735057603918,4.3,198.54,198.33,21.47275649]
[1735057604121,21.47275649,198.51,198.38,2.5225]
[1735057604322,1.5393,198.5,198.33,21.47275649]
[1735057604519,2.5218,198.44,198.34,55.92893324]
[1735057604825,4.3,198.46,198.4,2.5222]
[1735057605330,2.5218,198.44,198.4,2.5222]
[1735057605824,2.5222,198.41,198.36,2.5227]
[1735057606024,1.512,198.43,198.32,55.92893324]
[1735057606422,1.512,198.43,198.35,2.5229]
[1735057607524,2.5224,198.39,198.35,2.5229]
[1735057607941,1.512,198.43,198.29,21.47275649]
[1735057607942,2.5228,198.37,198.31,2.5233]
[1735057608424,4.3,198.39,198.31,2.5233]
[1735057608824,4.3,198.39,198.29,2.5236]
[1735057609029,1.6509,198.38,198.29,2.5236]
[1735057609323,2.5231,198.34,198.29,2.5236]
[1735057609521,1.6509,198.38,198.26,55.92893324]
[1735057609926,21.47275649,198.35,198.26,55.92893324]
[1735057610122,1.6491,198.34,198.22,55.92893324]
[1735057610531,2.5239,198.28,198.22,55.92893324]
[1735057610726,4.32,198.27,198.22,55.92893324]
[1735057610925,6.8439,198.27,198.22,55.92893324]
[1735057611327,4.32,198.27,198.22,55.92893324]
[1735057611534,1.5454,198.26,198.16,50.96673324]
[1735057612020,2.5248,198.21,198.16,50.96673324]
[1735057613124,2.5248,198.21,198.13,2.5256]
[1735057613331,6.8449,198.2,198.13,2.5256]
[1735057614026,4.32,198.2,198.1,21.47275649]
[1735057615428,4.32,198.35,198.18,21.47275649]
[1735057615625,5.8739,198.35,198.22,21.47275649]
[1735057615932,61.03221661,198.43,198.26,21.47275649]
[1735057616125,56.3115294,198.43,198.3,21.47275649]
[1735057616331,56.3115294,198.43,198.31,1.5788]
[1735057616531,1.5539,198.43,198.31,1.5788]
[1735057616732,4.32,198.42,198.2,1.5494]
[1735057616932,2.5227,198.37,198.3,2.5235]
[1735057617933,2.5227,198.37,198.26,21.47275649]
[1735057617934,4.32,198.42,198.26,21.47275649]
[1735057618133,2.5226,198.38,198.3,2.5234]
[1735057618534,1.5539,198.43,198.26,21.47275649]
[1735057618732,2.5223,198.4,198.33,2.5231]
[1735057619036,1.5539,198.43,198.3,21.47275649]
[1735057619037,5.8739,198.43,198.3,21.47275649]
[1735057619236,4.32,198.43,198.34,21.47275649]
[1735057620434,4.32,198.43,198.38,2.5225]
[1735057621035,2.5221,198.41,198.34,23.99565649]
[1735057621227,4.32,198.43,198.3,21.47275649]
[1735057621430,4.32,198.43,198.26,107.33476416]
[1735057621630,4.32,198.43,198.26,23.10375649]
[1735057622436,2.5227,198.37,198.29,2.5236]
[1735057622625,4.32,198.43,198.29,2.5236]
[1735057622827,4.32,198.43,198.26,23.10375649]
[1735057623038,2.5225,198.38,198.27,2.5238]
[1735057623230,4.32,198.43,198.26,23.10375649]
[1735057623430,124.0,198.45,198.19,79.26880767]
[1735057623634,64.41826947,198.2,197.99,13.61277985]
[1735057623835,21.47275649,198.08,197.99,13.61277985]
[1735057624031,21.47275649,198.08,197.94,278.73971967]
[1735057624032,21.47275649,198.01,197.94,278.73971967]
[1735057624334,7.1274,198.0,197.94,278.73971967]
[1735057624532,28.60015649,198.0,197.94,278.73971967]
[1735057625041,410.73384622,197.99,197.8,4.7421]
[1735057625235,2.5288,197.9,197.8,4.7421]
[1735057625436,4.6,197.9,197.8,4.7421]
[1735057625739,66.69923348,197.89,197.8,4.7421]
[1735057625941,69.22803348,197.89,197.8,4.7421]
[1735057626141,66.69923348,197.89,197.8,4.7421]
[1735057626440,49.96830192,197.88,197.72,22.90477264]
[1735057626640,82.34200839,197.84,197.72,22.90477264]
[1735057626940,6.83881051,197.75,197.72,22.90477264]
[1735057627135,4.35011051,197.75,197.72,22.90477264]
[1735057627343,1.86141051,197.75,197.74,2.5306]
[1735057627735,35.10850417,197.91,197.72,11.60999469]
[1735057628141,35.10850417,197.91,197.8,2.5298]
[1735057628735,35.10850417,197.91,197.72,11.60999469]
[1735057628939,35.10850417,197.91,197.81,2.5297]
[1735057629341,346.83601416,197.99,197.8,35.10850417]
[1735057629538,4.6,197.98,197.8,35.10850417]
[1735057629737,4.6,197.98,197.77,4.6]
[1735057629943,35.10850417,197.94,197.77,4.6]
[1735057630440,2.5287,197.9,197.79,2.53]
[1735057630641,4.6,197.9,197.6,52.44]
[1735057630832,2.5295,197.84,197.73,2.5307]
[1735057631036,2.5295,197.84,197.7,35.10850417]
[1735057631338,35.10850417,197.86,197.7,35.10850417]
[1735057631534,2.5294,197.84,197.74,2.5306]
[1735057631746,2.5294,197.84,197.7,35.10850417]
[1735057632545,37.63770417,197.86,197.71,1.5353]
[1735057633047,35.10850417,197.86,197.71,1.5353]
[1735057633745,37.63770417,197.86,197.76,2.5304]
[1735057633943,4.6,197.87,197.76,2.5304]
[1735057634143,4.6,197.86,197.76,2.5304]
[1735057635148,7.1292,197.86,197.76,2.5304]
[1735057635344,7.1292,197.86,197.71,1.5353]
[1735057635345,4.6,197.86,197.74,2.5306]
[1735057635839,2.5294,197.84,197.71,1.5353]
[1735057636237,2.5294,197.84,197.75,2.5305]
[1735057637348,4.62,197.87,197.71,1.5353]
[1735057637645,4.62,197.87,197.71,36.64380417]
[1735057637839,2.5294,197.84,197.75,2.5305]
[1735057639438,2.5292,197.86,197.77,2.5302]
[1735057639639,7.1492,197.86,197.77,2.5302]
[1735057640039,2.5293,197.85,197.77,2.5302]
[1735057640240,4.62,197.88,197.77,2.5302]
[1735057640447,4.62,197.88,197.71,36.64380417]
[1735057640646,2.5295,197.83,197.75,2.5304]
[1735057641449,4.62,197.88,197.71,36.64380417]
[1735057641642,35.10850417,197.86,197.67,35.10850417]
[1735057641844,35.10850417,197.86,197.68,1.5199]
[1735057642542,2.5298,197.81,197.7,2.5311]
[1735057642743,4.62,197.81,197.7,2.5311]
[1735057643248,2.5302,197.78,197.7,2.5311]
[1735057643445,4.62,197.81,197.68,1.5199]
[1735057644348,4.62,197.81,197.63,35.10850417]
[1735057644549,4.62,197.81,197.63,36.69530417]
[1735057644550,2.5306,197.75,197.63,36.69530417]
[1735057645553,2.5307,197.74,197.67,2.5315]
[1735057645747,4.62,197.81,197.63,36.69530417]
[1735057645950,35.10850417,197.78,197.63,36.69530417]
[1735057646351,2.5308,197.73,197.66,2.5317]
[1735057646753,2.5307,197.74,197.67,2.5315]
[1735057646956,35.10850417,197.78,197.63,36.69530417]
[1735057647156,4.38,197.74,197.63,1.5868]
[1735057647347,4.38,197.74,197.58,4.38]
[1735057647557,2.5313,197.7,197.58,4.38]
[1735057648246,2.5313,197.7,197.57,35.10850417]
[1735057648551,2.5313,197.7,197.62,2.5321]
[1735057649251,2.5313,197.69,197.62,2.5321]
[1735057650249,4.38,197.76,197.6,21.63550313]
[1735057650652,21.63550313,197.75,197.56,21.63550313]
[1735057651359,4.38,197.76,197.47,52.58]
[1735057651360,4.38,197.76,197.54,21.63550313]
[1735057651552,21.63550313,197.74,197.54,21.63550313]
[1735057651750,4.38,197.73,197.54,21.63550313]
[1735057652056,21.63550313,197.74,197.58,21.63550313]
[1735057652359,4.38,197.73,197.58,21.63550313]
[1735057652552,4.38,197.73,197.59,4.7082]
[1735057652766,21.63550313,197.74,197.59,4.7082]
[1735057652954,4.38,197.73,197.59,4.7082]
[1735057653176,2.5312,197.7,197.64,2.5319]
[1735057653462,4.38,197.71,197.59,4.7082]
[1735057653662,4.38,197.71,197.59,3.1141]
[1735057654661,2.5316,197.67,197.61,2.5322]
[1735057655063,2.5317,197.66,197.59,5.6466]
[1735057655361,26.01550313,197.71,197.59,5.6466]
[1735057656166,2.5318,197.65,197.59,5.6466]
[1735057658671,2.5316,197.67,197.59,3.1141]
[1735057658866,4.38,197.71,197.59,3.1141]
[1735057659465,4.38,197.71,197.6,2.5324]
[1735057659671,21.63550313,197.72,197.53,24.72570313]
[1735057659872,4.38,197.71,197.53,24.72570313]
[1735057660173,4.38,197.71,197.55,21.63550313]
[1735057661268,2.5318,197.65,197.55,21.63550313]
[1735057661468,4.4,197.7,197.55,21.63550313]
[1735057661867,2.5319,197.65,197.58,2.5326]
[1735057662069,4.4,197.7,197.55,21.63550313]
[1735057662268,4.4,197.7,197.53,3.0902]
[1735057662867,2.5319,197.65,197.53,3.0902]
[1735057663070,4.4,197.7,197.53,3.0902]
[1735057663464,2.5321,197.64,197.58,2.5326]
[1735057663668,4.4,197.7,197.53,3.0902]
[1735057664067,2.5321,197.64,197.57,2.5327]
[1735057664271,4.4,197.7,197.53,3.0902]
[1735057665372,21.63550313,197.72,197.53,3.0902]
[1735057665567,21.63550313,197.68,197.53,3.0902]
[1735057665767,2.5326,197.59,197.54,2.5332]
[1735057668273,2.5326,197.59,197.47,10.34751749]
[1735057668478,4.4,197.63,197.47,10.34751749]
[1735057669276,4.4,197.63,197.54,2.5331]
[1735057669479,4.4,197.63,197.47,10.34751749]
[1735057670077,1.6213,197.66,197.51,21.63550313]
[1735057670579,4.4,197.65,197.51,21.63550313]
[1735057671386,2.5327,197.59,197.54,2.5332]
[1735057671587,4.4,197.65,197.47,21.63550313]
[1735057672183,2.5328,197.58,197.53,2.5333]
[1735057672384,4.4,197.65,197.47,21.63550313]
[1735057672585,21.63550313,197.63,197.47,21.63550313]
[1735057672780,2.5327,197.59,197.49,2.5338]
[1735057672983,4.16,197.58,197.47,21.63550313]
[1735057673685,4.16,197.58,197.43,24.84210313]
[1735057673891,21.63550313,197.63,197.43,24.84210313]
[1735057674078,2.5329,197.57,197.52,2.5334]
[1735057676080,2.5331,197.55,197.5,2.5336]
[1735057676280,1.5906,197.61,197.5,2.5336]
[1735057676685,2.5332,197.54,197.49,2.5339]
[1735057677585,2.5334,197.53,197.49,2.5339]
[1735057678477,2.5334,197.53,197.43,3.2066]
[1735057678675,2.5334,197.53,197.48,2.534]
[1735057680387,2.5335,197.52,197.48,2.534]
[1735057681386,4.18,197.55,197.46,2.5342]
[1735057681690,1.5917,197.54,197.42,1.5484]
[1735057681885,3.2053,197.54,197.42,1.5484]
[1735057682482,2.5341,197.48,197.44,2.5344]
[1735057682886,4.18,197.48,197.37,21.63550313]
[1735057683087,4.18,197.48,197.36,1.5361]
[1735057683492,2.5349,197.41,197.36,4.0716]
[1735057683691,2.5349,197.41,197.36,1.5361]
[1735057683892,2.5349,197.41,197.3,1.5456]
[1735057684196,2.5351,197.4,197.34,2.5357]
[1735057685093,2.5352,197.39,197.34,2.5357]
[1735057685290,2.5352,197.39,197.32,2.536]
[1735057685980,2.5353,197.38,197.32,2.536]
[1735057686382,2.5353,197.38,197.28,3.0494]
[1735057686383,4.18,197.41,197.3,2.5362]
[1735057687783,4.18,197.41,197.28,4.0726]
[1735057687784,21.63550313,197.39,197.28,4.0726]
[1735057687984,21.63550313,197.39,197.19,21.63550313]
[1735057687985,2.5361,197.32,197.19,21.63550313]
[1735057688190,4.18,197.32,197.19,21.63550313]
[1735057688489,4.18,197.32,197.24,2.537]
[1735057688788,21.63550313,197.31,197.16,3.1726]
[1735057688996,23.18800313,197.31,197.2,2.5375]
[1735057689197,24.70860313,197.31,197.2,2.5375]
[1735057689497,24.70860313,197.31,197.16,3.1726]
[1735057689694,24.70860313,197.31,197.16,1.6027]
[1735057689887,21.63550313,197.27,197.16,1.6027]
[1735057690497,21.63550313,197.27,197.05,4.18]
[1735057690498,21.63550313,197.17,196.84,52.7]
[1735057690696,21.63550313,197.13,196.93,1.5862]
[1735057690890,4.18,197.12,196.95,21.63550313]
[1735057691092,4.18,197.11,196.95,21.63550313]
[1735057691390,4.18,197.1,196.95,21.63550313]
[1735057691786,4.18,197.12,196.99,21.63550313]
[1735057691990,2.5387,197.12,197.01,2.54]
[1735057692194,4.18,197.13,196.94,1.6556]
[1735057692397,4.18,197.13,196.99,21.63550313]
[1735057692588,4.18,197.12,196.99,21.63550313]
[1735057692790,2.5389,197.1,197.0,2.5401]
[1735057693094,2.5389,197.1,196.99,21.63550313]
[1735057693095,21.63550313,197.17,196.99,21.63550313]
[1735057693502,2.5385,197.14,197.04,2.5396]
[1735057693695,2.5385,197.14,197.05,1.6184]
[1735057693899,4.18,197.15,197.05,4.1579]
[1735057694199,137.23668066,197.4,197.05,1.6184]
[1735057694391,21.63550313,197.28,197.07,21.63550313]
[1735057694594,4.18,197.27,197.07,25.81550313]
[1735057694797,21.63550313,197.24,197.06,3.0658]
[1735057694991,21.63550313,197.2,197.06,3.0658]
[1735057695196,4.18,197.19,197.06,3.0658]
[1735057695499,4.18,197.19,197.08,2.5391]
[1735057696302,2.5382,197.16,197.06,5.6051]
[1735057696904,2.5383,197.15,197.06,5.6051]
[1735057699105,2.5384,197.14,197.06,5.6051]
[1735057699302,4.18,197.19,197.06,3.0658]
[1735057699507,2.5391,197.09,197.05,1.6184]
[1735057699807,4.18,197.12,197.05,1.6184]
[1735057700406,25.81550313,197.16,197.05,1.6184]
[1735057700803,2.5386,197.13,197.05,1.6184]
[1735057701303,2.5389,197.1,197.05,1.6184]
[1735057701504,25.81550313,197.16,197.05,1.6184]
[1735057701705,25.81550313,197.16,197.01,1.5568]
[1735057702202,21.63550313,197.16,197.01,1.5568]
[1735057702404,4.02,197.15,197.01,1.5568]
[1735057703412,2.5386,197.12,197.04,2.5396]
[1735057704009,2.5385,197.14,197.05,2.5395]
[1735057704307,4.02,197.14,197.05,2.5395]
[1735057705113,3.2035,197.18,197.05,2.5395]
[1735057705114,4.02,197.15,197.05,2.5395]
[1735057705914,2.5385,197.14,197.06,2.5394]
[1735057706109,1.5306,197.19,197.02,4.02]
[1735057706407,2.5377,197.19,197.1,2.5388]
[1735057706614,4.02,197.21,197.02,4.02]
[1735057706814,21.63550313,197.2,197.02,4.02]
[1735057707015,23.27980313,197.2,197.02,4.02]
[1735057707209,2.5384,197.14,197.06,2.5393]
[1735057707406,23.27980313,197.2,197.02,4.02]
[1735057708407,2.5382,197.15,197.08,2.5391]
[1735057708608,1.6443,197.2,197.02,4.02]
[1735057708813,4.02,197.2,197.07,21.63550313]
[1735057709008,2.5377,197.2,197.12,2.5386]
[1735057709216,1.582,197.28,197.13,1.5722]
[1735057709217,4.02,197.25,197.13,1.5722]
[1735057709530,4.02,197.24,197.07,7.73500739]
[1735057709711,2.5376,197.21,197.07,7.73500739]
[1735057710116,2.5376,197.21,197.14,2.5383]
[1735057710421,2.5376,197.21,197.07,7.73500739]
[1735057710621,4.02,197.24,197.07,7.73500739]
[1735057710823,2.5376,197.2,197.13,2.5384]
[1735057711120,2.5376,197.2,197.07,7.73500739]
[1735057711827,2.5372,197.23,197.11,21.63550313]
[1735057712027,5.602,197.28,197.12,1.6032]
[1735057712727,2.5372,197.24,197.13,2.5384]
[1735057712918,5.602,197.28,197.12,1.6032]
[1735057713926,2.5373,197.23,197.16,2.5381]
[1735057714725,52.76,197.38,197.13,1.6236]
[1735057714925,2.5368,197.26,197.2,2.5376]
[1735057715628,2.537,197.25,197.19,2.5377]
[1735057715826,4.02,197.29,197.15,21.63550313]
[1735057717029,21.63550313,197.34,197.19,21.63550313]
[1735057717225,4.8799,197.36,197.19,21.63550313]
[1735057717527,2.5361,197.32,197.23,21.63550313]
[1735057717730,2.5361,197.32,197.24,3.2792]
[1735057718027,21.63550313,197.42,197.24,3.2792]
[1735057718230,4.02,197.39,197.24,3.2792]
[1735057718931,4.02,197.39,197.27,2.5367]
[1735057719723,2.5359,197.34,197.27,2.5367]
[1735057720133,4.02,197.39,197.27,2.5367]
[1735057721634,2.536,197.33,197.27,2.5367]
[1735057723132,2.5362,197.31,197.25,2.5369]
[1735057723537,21.63550313,197.38,197.24,3.2792]
[1735057723832,21.63550313,197.38,197.21,2.5374]
[1735057724627,21.63550313,197.34,197.21,2.5374]
[1735057725438,2.5367,197.27,197.21,2.5374]
[1735057725731,4.02,197.31,197.19,2.5376]
[1735057726136,2.5366,197.29,197.16,25.65550313]
[1735057726335,4.02,197.31,197.2,21.63550313]
[1735057726536,4.02,197.36,197.2,21.63550313]
[1735057726737,2.5365,197.29,197.22,2.5372]
[1735057727041,4.02,197.36,197.22,2.5372]
[1735057727241,2.5369,197.26,197.2,24.17310313]
[1735057728841,2.537,197.25,197.19,2.5377]
[1735057729140,4.02,197.36,197.16,25.65550313]
[1735057729339,4.02,197.36,197.16,21.63550313]
[1735057729541,21.63550313,197.31,197.13,4.02]
[1735057729742,4.8006,197.3,197.12,3.2155]
[1735057729942,2.5374,197.22,197.12,7.2355]
[1735057730137,4.02,197.29,197.12,24.85100313]
[1735057730344,21.63550313,197.28,197.11,1.1294]
[1735057730543,21.63550313,197.28,197.11,22.76490313]
[1735057730743,21.63550313,197.24,197.0,28.70197829]
[1735057731045,21.63550313,197.24,197.03,21.63550313]
[1735057731545,2.5386,197.13,197.06,2.5394]
[1735057732941,4.6512,197.18,197.03,21.63550313]
[1735057733146,2.5384,197.14,197.08,2.5391]
[1735057733341,21.63550313,197.24,197.08,3.84]
[1735057733535,2.5376,197.21,197.08,3.84]
[1735057733736,2.5376,197.21,197.13,2.5384]
[1735057734141,2.5378,197.19,197.13,2.5384]
[1735057736548,2.5376,197.2,197.08,6.957]
[1735057737349,2.5376,197.2,197.13,2.5384]
[1735057738054,2.5376,197.2,197.08,6.957]
[1735057738241,2.5374,197.22,197.11,21.63550313]
[1735057738441,3.84,197.24,197.11,21.63550313]
[1735057738644,4.7249,197.27,197.11,21.63550313]
[1735057738845,3.84,197.26,197.11,21.63550313]
[1735057739854,3.84,197.26,197.12,2.5385]
[1735057740450,2.5379,197.18,197.08,6.957]
[1735057740752,3.84,197.26,197.08,6.957]
[1735057741251,2.5378,197.19,197.12,2.5385]
[1735057741454,2.5378,197.19,197.08,6.957]
[1735057741955,3.84,197.26,197.08,6.957]
[1735057742256,3.84,197.26,197.08,3.117]
[1735057742558,3.84,197.26,197.11,21.63550313]
[1735057742850,4.7249,197.27,197.11,21.63550313]